bitfinex/quotes_BTCUSD_20260310
["timestamp","ask_amount","ask_price","bid_price","bid_amount"]
[1773106169360,0.03,69013.0,69003.0,0.07721344]
[1773106169664,0.03,69013.0,69004.0,0.00475283]
[1773106170685,0.03,69013.0,69005.0,0.00148]
[1773106171260,0.10245032,69013.0,69006.0,0.07245746]
[1773106176663,0.10245032,69013.0,69005.0,0.0739385]
[1773106176902,0.10245032,69013.0,69002.0,0.0002]
[1773106176903,0.03,69011.0,69002.0,0.0002]
[1773106177119,0.07245032,69013.0,68999.0,0.07414435]
[1773106177120,0.11120811,69008.0,68999.0,0.07414435]
[1773106177290,0.03,69006.0,68999.0,0.07414435]
[1773106177496,0.03,69006.0,69000.0,0.00148]
[1773106177840,0.03,69006.0,68999.0,0.07266435]
[1773106178042,0.03,69006.0,68999.0,0.07414435]
[1773106178268,0.03,69005.0,68999.0,0.07414435]
[1773106178874,0.03,69005.0,68999.0,0.07266435]
[1773106179078,0.03,69005.0,69000.0,0.00148]
[1773106179525,0.03,69004.0,69000.0,0.00148]
[1773106179926,0.03,69004.0,68999.0,0.0002]
[1773106180231,0.03,69004.0,68999.0,0.00168]
[1773106180411,0.03,69003.0,68999.0,0.00168]
[1773106180608,0.03,69003.0,68999.0,0.0002]
[1773106180928,0.03,69003.0,69002.0,0.0002]
[1773106182506,0.03,69007.0,69002.0,0.0002]
[1773106183338,0.18347583,69007.0,69002.0,0.0002]
[1773106184244,0.18347583,69007.0,68993.0,0.07247029]
[1773106184245,0.03,69005.0,68993.0,0.07247029]
[1773106184476,0.0724566,69007.0,68993.0,0.07247029]
[1773106184477,0.03,69002.0,68993.0,0.07247029]
[1773106185883,0.0724481,69015.0,68996.0,0.07416974]
[1773106186098,0.07267013,69013.0,69001.0,0.00468547]
[1773106186932,0.03,69012.0,69001.0,0.00468547]
[1773106187984,0.03,69012.0,69003.0,0.00468547]
[1773106188206,0.03,69012.0,69004.0,0.00148]
[1773106188442,0.03,69012.0,69005.0,0.00468547]
[1773106190060,0.03,69012.0,69006.0,0.07245746]
[1773106190457,0.1024516,69012.0,69006.0,0.07245746]
[1773106193227,0.1024516,69012.0,69005.0,0.07245851]
[1773106195960,0.00022001,69013.0,69006.0,0.00482546]
[1773106196209,0.03022001,69013.0,69006.0,0.00482546]
[1773106196954,0.10267025,69013.0,69006.0,0.00482546]
[1773106197461,0.10267025,69013.0,69006.0,0.077282]
[1773106197655,0.10267025,69013.0,69006.0,0.07245654]
[1773106198215,0.10267025,69013.0,69004.0,0.07393894]
[1773106198391,0.03,69011.0,69003.0,0.07413851]
[1773106198570,0.00460724,69010.0,69003.0,0.07393851]
[1773106198777,0.03,69011.0,69003.0,0.07393851]
[1773106198978,0.03,69011.0,68996.0,0.0726672]
[1773106199317,0.03,69012.0,69000.0,0.00148]
[1773106199883,0.1024519,69012.0,69002.0,0.00482546]
[1773106201790,0.10245146,69012.0,69003.0,0.07246061]
[1773106202374,0.10245146,69012.0,69002.0,0.07728607]
[1773106202375,0.10245146,69012.0,69002.0,0.07246061]
[1773106202625,0.10245146,69012.0,68996.0,0.07266734]
[1773106202626,0.03,69010.0,68996.0,0.07266734]
[1773106202795,0.00460724,69006.0,68996.0,0.00168]
[1773106203175,0.00460724,69006.0,68984.0,0.00148]
[1773106203176,0.00460724,68998.0,68984.0,0.00148]
[1773106203354,0.00460724,68990.0,68980.0,0.00148]
[1773106203557,0.03,68990.0,68988.0,0.0002]
[1773106203784,0.03,68990.0,68979.0,0.00148]
[1773106203925,0.03,68990.0,68979.0,0.07396505]
[1773106203926,0.03,68988.0,68979.0,0.07396505]
[1773106204139,0.03,68988.0,68981.0,0.0002]
[1773106204341,0.03,68988.0,68981.0,0.00058213]
[1773106204948,0.03,68987.0,68981.0,0.00058213]
[1773106205907,0.03,68991.0,68982.0,0.07248267]
[1773106206303,0.03,68991.0,68982.0,0.07730813]
[1773106207114,0.07247011,68994.0,68982.0,0.07730813]
[1773106208333,0.03,68993.0,68983.0,0.00482546]
[1773106209485,0.03456191,68993.0,68982.0,0.07248267]
[1773106210812,0.03,68991.0,68982.0,0.07248267]
[1773106211120,0.03,68991.0,68983.0,0.00148]
[1773106211680,0.07393851,69005.0,68986.0,0.06886847]
[1773106211910,0.00022001,69003.0,68989.0,0.06886847]
[1773106212087,0.00022001,69003.0,68992.0,0.00451526]
[1773106212289,0.00022001,69003.0,68990.0,0.05753473]
[1773106212290,0.00022001,69003.0,68994.0,0.00451526]
[1773106212941,0.03022001,69003.0,68995.0,0.07246901]
[1773106213557,0.10268117,69003.0,68995.0,0.07246901]
[1773106213757,0.00456191,69002.0,68995.0,0.07246901]
[1773106214099,0.00456191,69002.0,68983.0,0.07248088]
[1773106214286,0.00456191,69002.0,68985.0,0.00451526]
[1773106214708,0.00456191,69002.0,68984.0,0.00148]
[1773106214709,0.00456191,68998.0,68984.0,0.00148]
[1773106214963,0.03,68996.0,68985.0,0.07247952]
[1773106215169,0.03,68996.0,68986.0,0.00148]
[1773106215323,0.03,68996.0,68987.0,0.00451526]
[1773106216008,0.03,68995.0,68983.0,0.07248088]
[1773106216311,0.00456191,68994.0,68984.0,0.00148]
[1773106216482,0.07246609,68998.0,68982.0,0.00148]
[1773106216483,0.03,68990.0,68982.0,0.00148]
[1773106216836,0.03456191,68990.0,68982.0,0.00148]
[1773106216967,0.03,68988.0,68981.0,0.07306485]
[1773106217168,0.03,68988.0,68982.0,0.00148]
[1773106217957,0.03,68987.0,68981.0,0.07306485]
[1773106218164,0.03,68987.0,68982.0,0.00148]
[1773106218380,0.03,68987.0,68981.0,0.00058213]
[1773106218601,0.03,68987.0,68981.0,0.07306585]
[1773106218803,0.03,68987.0,68981.0,0.00206213]
[1773106219002,0.03,68986.0,68981.0,0.00058213]
[1773106219932,0.03,68986.0,68981.0,0.0730657]
[1773106220134,0.03,68987.0,68981.0,0.0730657]
[1773106221064,0.07247595,68989.0,68981.0,0.0730657]
[1773106221269,0.03,68988.0,68981.0,0.0730657]
[1773106222986,0.07065388,68989.0,68981.0,0.0730657]
[1773106225212,0.07521579,68989.0,68981.0,0.00058213]
[1773106225412,0.00456191,68988.0,68980.0,0.00148]
[1773106225661,0.00494381,68988.0,68980.0,0.00148]
[1773106226096,0.00494381,68988.0,68976.0,1e-08]
[1773106226286,0.00456191,68981.0,68970.0,0.0001442]
[1773106226479,0.00148,68987.0,68970.0,0.0001442]
[1773106226480,0.00456191,68978.0,68970.0,0.0001442]
[1773106227516,0.03,68976.0,68970.0,0.0001442]
[1773106227694,0.07378131,68980.0,68970.0,0.0001442]
[1773106227695,0.07247847,68986.0,68972.0,0.00451526]
[1773106228023,0.07247847,68986.0,68973.0,0.00451526]
[1773106228416,0.03,68985.0,68973.0,0.00451526]
[1773106229413,0.03,68983.0,68978.0,0.0002]
[1773106230971,0.07703963,68987.0,68978.0,0.0002]
[1773106231160,0.07285859,68988.0,68979.0,0.00451526]
[1773106231557,0.07285859,68988.0,68979.0,0.07700008]
[1773106232111,0.03,68987.0,68979.0,0.07700008]
[1773106232340,0.03,68987.0,68978.0,0.0002]
[1773106232540,0.03,68987.0,68978.0,0.07268686]
[1773106233394,0.03,68987.0,68978.0,0.0002]
[1773106233569,0.03,68987.0,68978.0,0.07268646]
[1773106233570,0.07247847,68986.0,68978.0,0.07268646]
[1773106233909,0.07247847,68986.0,68978.0,0.0002]
[1773106233910,0.03,68985.0,68978.0,0.0002]
[1773106234405,0.00456191,68984.0,68978.0,0.0002]
[1773106234626,0.00456191,68984.0,68969.0,0.00451526]
[1773106234627,0.00456191,68984.0,68971.0,0.0002]
[1773106234788,0.00456191,68982.0,68974.0,0.00148]
[1773106234997,0.00456191,68982.0,68971.0,0.0002]
[1773106235201,0.00456191,68982.0,68971.0,0.07417388]
[1773106236615,0.03,68980.0,68971.0,0.07417388]
[1773106237341,0.03,68980.0,68978.0,0.0002]
[1773106238572,0.03,68980.0,68971.0,0.00168]
[1773106238784,0.03,68980.0,68971.0,0.0002]
[1773106238785,0.03,68978.0,68971.0,0.0002]
[1773106238939,0.03,68978.0,68971.0,0.00168]
[1773106239983,0.03,68978.0,68969.0,0.0001379]
[1773106240134,0.00456066,68977.0,68969.0,0.0001379]
[1773106240919,0.03,68975.0,68969.0,0.0001379]
[1773106243150,0.03,68973.0,68969.0,0.0001379]
[1773106243962,0.07246717,68997.0,68969.0,0.0001379]
[1773106244169,0.03,68983.0,68972.0,0.00450302]
[1773106245220,0.07248267,68982.0,68972.0,0.07847611]
[1773106245424,0.03,68981.0,68972.0,0.07847611]
[1773106246001,0.03,68981.0,68972.0,0.07847606]
[1773106246250,0.03,68981.0,68973.0,0.00450302]
[1773106247531,0.03,68982.0,68973.0,0.00450302]
[1773106247730,0.07248021,68985.0,68973.0,0.07249185]
[1773106247930,0.07248021,68985.0,68973.0,0.07699487]
[1773106248562,0.03,68984.0,68973.0,0.07699487]
[1773106249528,0.03,68983.0,68974.0,0.07308238]
[1773106249727,0.03,68983.0,68975.0,0.00450302]
[1773106250349,0.07247854,68986.0,68975.0,0.00450302]
[1773106250552,0.07247257,68992.0,68979.0,0.00450302]
[1773106250750,0.0724712,68993.0,68981.0,0.00450302]
[1773106251601,0.03,68990.0,68982.0,0.07248267]
[1773106252281,0.03,68990.0,68983.0,0.00472553]
[1773106253455,0.03,68988.0,68981.0,0.07248355]
[1773106254132,0.00498658,68987.0,68970.0,0.00472553]
[1773106254303,0.03,68983.0,68972.0,0.07417275]
[1773106254476,0.00498658,68982.0,68972.0,0.07417275]
[1773106254652,0.00498658,68982.0,68972.0,0.07269308]
[1773106254857,0.03498658,68981.0,68972.0,0.0002]
[1773106255055,0.00498658,68980.0,68972.0,0.0002]
[1773106255485,0.03,68979.0,68972.0,0.0002]
[1773106255688,0.07248239,68983.0,68974.0,0.00472553]
[1773106256116,0.07286018,68987.0,68974.0,0.00472553]
[1773106256335,0.07286018,68987.0,68976.0,0.00472553]
[1773106256483,0.03,68986.0,68976.0,0.00472553]
[1773106256697,0.03,68986.0,68978.0,0.0002]
[1773106257647,0.03,68984.0,68978.0,0.0002]
[1773106259189,0.07247952,68986.0,68979.0,0.00472553]
[1773106259387,0.07269439,68990.0,68980.0,0.00472553]
[1773106259611,0.07269439,68990.0,68981.0,0.07720925]
[1773106259862,0.00022001,69003.0,68981.0,0.07248372]
[1773106260056,0.0728134,69002.0,68985.0,0.06586275]
[1773106260204,0.03,69001.0,68988.0,0.00472553]
[1773106260409,0.0728134,69002.0,68990.0,0.06586275]
[1773106260410,0.00035091,69002.0,68990.0,0.06586275]
[1773106260615,0.14405676,69003.0,68996.0,0.00472553]
[1773106260616,0.00022001,69003.0,68996.0,0.00472553]
[1773106260813,0.07245794,69006.0,68997.0,0.00472553]
[1773106261031,0.00035091,69009.0,68996.0,0.00148]
[1773106261032,0.00035091,69009.0,68999.0,0.00472553]
[1773106261244,0.00035091,69009.0,69000.0,0.00472553]
[1773106261245,0.03035091,69009.0,69000.0,0.00472553]
[1773106261647,0.0726708,69013.0,69000.0,0.00472553]
[1773106261648,0.00022001,69013.0,69005.0,0.00472553]
[1773106261842,0.00022001,69013.0,69002.0,0.07246166]
[1773106261843,0.07266429,69019.0,69008.0,0.06586275]
[1773106262087,0.07266429,69019.0,69009.0,0.00472553]
[1773106262295,0.03,69018.0,69006.0,0.00148]
[1773106262657,0.00498658,69014.0,69007.0,0.00148]
[1773106263062,0.03,69015.0,69007.0,0.00148]
[1773106263270,0.03,69015.0,69003.0,0.00472553]
[1773106263475,0.07266382,69022.0,69003.0,0.00472553]
[1773106263477,0.18719041,69049.0,69009.0,0.06946144]
[1773106263713,0.00011458,69047.0,69022.0,0.00472553]
[1773106263917,0.0003997,69050.0,69032.0,0.06946144]
[1773106264120,0.0003997,69050.0,69035.0,0.00472553]
[1773106264328,0.0003997,69050.0,69037.0,0.06946144]
[1773106264544,0.07281144,69050.0,69038.0,0.00472553]
[1773106264792,0.03,69049.0,69039.0,0.00148]
[1773106266109,0.03,69047.0,69039.0,0.07390236]
[1773106266510,0.03,69047.0,69039.0,0.07862789]
[1773106266715,0.03,69047.0,69039.0,0.07390236]
[1773106267331,0.03022001,69047.0,69039.0,0.07862789]
[1773106267872,0.03022001,69047.0,69040.0,0.00472553]
[1773106268082,0.03,69048.0,69040.0,0.00472553]
[1773106268296,0.00022001,69054.0,69042.0,0.00472553]
[1773106268297,0.07240938,69052.0,69042.0,0.00472553]
[1773106268516,0.07262741,69054.0,69042.0,0.00472553]
[1773106268737,0.00022001,69054.0,69042.0,0.00472553]
[1773106269011,0.00022001,69054.0,69043.0,0.00472553]
[1773106269192,0.10262762,69054.0,69043.0,0.00472553]
[1773106269631,0.03022001,69054.0,69043.0,0.00472553]
[1773106270794,0.03009209,69054.0,69044.0,0.07703696]
[1773106270969,0.03009209,69054.0,69045.0,0.00609938]
[1773106271176,0.10249946,69054.0,69045.0,0.00609938]
[1773106271389,0.03,69053.0,69046.0,0.00461938]
[1773106272001,0.03,69053.0,69045.0,0.00148]
[1773106272339,0.03,69053.0,69042.0,0.07241758]
[1773106272340,0.03,69048.0,69035.0,0.07242598]
[1773106272473,0.10262534,69048.0,69035.0,0.07242598]
[1773106272686,0.03,69046.0,69037.0,0.07242493]
[1773106272890,0.03,69046.0,69038.0,0.00461938]
[1773106273109,0.03,69046.0,69039.0,0.00148]
[1773106273521,0.03,69046.0,69038.0,0.00148]
[1773106273691,0.03,69046.0,69035.0,0.07242598]
[1773106273892,0.03,69046.0,69038.0,0.00148]
[1773106274544,0.03,69046.0,69037.0,0.00148]
[1773106274975,0.03,69044.0,69038.0,0.00148]
[1773106275602,0.03,69044.0,69037.0,0.00148]
[1773106276011,0.03,69043.0,69037.0,0.00148]
[1773106277220,0.03,69043.0,69037.0,0.07390489]
[1773106277428,0.03,69043.0,69037.0,0.07390481]
[1773106278720,0.03,69042.0,69037.0,0.07390481]
[1773106278914,0.03,69042.0,69037.0,0.07852419]
[1773106279885,0.07241657,69045.0,69037.0,0.07852419]
[1773106279886,0.03,69041.0,69037.0,0.07852419]
[1773106280023,0.03,69041.0,69038.0,0.07704254]
[1773106280633,0.03,69041.0,69039.0,0.00461938]
[1773106280846,0.03,69045.0,69039.0,0.00461938]
[1773106281230,0.10241692,69045.0,69039.0,0.00461938]
[1773106281428,0.10241692,69045.0,69038.0,0.07242316]
[1773106281640,0.10241692,69045.0,69032.0,0.00011458]
[1773106281847,0.10241692,69045.0,69022.0,0.07244009]
[1773106281848,0.00467524,69039.0,69022.0,0.07244009]
[1773106282056,0.03,69035.0,69026.0,0.07391575]
[1773106282263,0.03,69035.0,69027.0,0.00148]
[1773106282686,0.03,69035.0,69030.0,0.0002]
[1773106283062,0.07242598,69036.0,69030.0,0.0002]
[1773106283063,0.03,69036.0,69030.0,0.0002]
[1773106283213,0.03,69036.0,69031.0,0.00461938]
[1773106283420,0.07242505,69037.0,69031.0,0.00461938]
[1773106283622,0.07242505,69037.0,69030.0,0.0002]
[1773106284421,0.00011456,69039.0,69030.0,0.07263227]
[1773106285031,0.00011456,69039.0,69030.0,0.0002]
[1773106286061,0.03,69036.0,69030.0,0.0002]
[1773106286310,0.03,69034.0,69030.0,0.0002]
[1773106286516,0.00011456,69039.0,69030.0,0.0002]
[1773106286723,7.456e-05,69039.0,69031.0,0.00461938]
[1773106288069,0.07263998,69042.0,69031.0,0.00461938]
[1773106288070,0.00022001,69042.0,69031.0,0.00461938]
[1773106288269,0.00022001,69042.0,69032.0,0.07243017]
[1773106288475,0.03,69041.0,69033.0,0.00461938]
[1773106289026,0.03,69041.0,69031.0,0.07254473]
[1773106289248,0.0979501,69041.0,69031.0,0.07254473]
[1773106289801,0.03,69039.0,69031.0,0.00011456]
[1773106290175,0.0979501,69039.0,69031.0,0.07254566]
[1773106290382,0.03,69039.0,69031.0,0.00011456]
[1773106290601,0.03,69039.0,69033.0,0.00461938]
[1773106290780,0.03,69039.0,69032.0,0.00148]
[1773106290912,0.03,69038.0,69032.0,0.00148]
[1773106291118,0.03,69038.0,69033.0,0.00461938]
[1773106291410,0.07242083,69041.0,69033.0,0.00461938]
[1773106291596,0.00022001,69042.0,69033.0,0.00461938]
[1773106291597,0.07264019,69042.0,69033.0,0.00461938]
[1773106292106,0.03,69041.0,69033.0,0.00461938]
[1773106292835,0.03,69039.0,69033.0,0.00461938]
[1773106293039,0.03,69039.0,69032.0,0.07390974]
[1773106293594,0.03,69039.0,69032.0,0.00148]
[1773106293801,0.03,69039.0,69032.0,0.07387]
[1773106294985,0.10242312,69039.0,69032.0,0.07387]
[1773106295961,0.10242312,69039.0,69032.0,0.00144]
[1773106296502,0.10242312,69039.0,69032.0,0.11619049]
[1773106296735,0.10242312,69039.0,69032.0,0.11639049]
[1773106297407,0.10242312,69039.0,69031.0,0.00148]
[1773106297408,0.03,69035.0,69031.0,0.00148]
[1773106297619,0.03,69033.0,69023.0,0.17232573]
[1773106297938,0.10269977,69033.0,69026.0,0.07391647]
[1773106298233,0.03011456,69033.0,69026.0,0.07391647]
[1773106298568,0.03,69032.0,69025.0,0.07286713]
[1773106298773,0.03,69032.0,69026.0,0.00148]
[1773106299237,0.00022001,69042.0,69028.0,0.00495448]
[1773106299438,0.07264056,69042.0,69029.0,0.00495448]
[1773106299640,0.03,69041.0,69029.0,0.00495448]
[1773106300470,0.03,69039.0,69027.0,0.07243542]
[1773106300797,0.07264056,69042.0,69025.0,0.07286713]
[1773106300798,0.03,69037.0,69028.0,0.00148]
[1773106300997,0.03,69037.0,69028.0,0.00159456]
[1773106301521,0.03,69035.0,69028.0,0.00159456]
[1773106301748,0.03,69035.0,69028.0,0.07402863]
[1773106302177,0.03,69033.0,69025.0,0.07286713]
[1773106302378,0.10242804,69031.0,69026.0,0.00148]
[1773106302605,0.03,69031.0,69026.0,0.00148]
[1773106303490,0.00011458,69033.0,69026.0,0.00148]
[1773106304090,0.10254262,69033.0,69028.0,0.0002]
[1773106304295,0.03,69031.0,69023.0,0.0002]
[1773106304499,0.03,69031.0,69024.0,0.00148]
[1773106305017,0.03,69031.0,69025.0,0.00148]
[1773106305199,0.03,69030.0,69025.0,0.00148]
[1773106305604,0.00011458,69033.0,69025.0,0.00148]
[1773106306009,0.07242438,69038.0,69026.0,0.07243647]
[1773106306209,0.03,69038.0,69027.0,0.00495448]
[1773106309000,0.03,69036.0,69028.0,0.07243437]
[1773106309406,0.03,69036.0,69028.0,0.07740663]
[1773106309707,0.03,69036.0,69029.0,0.00497226]
[1773106309901,0.03,69037.0,69029.0,0.00497226]
[1773106310927,0.03,69038.0,69030.0,0.07243227]
[1773106311107,0.03,69038.0,69031.0,0.00148]
[1773106311502,0.10242388,69038.0,69031.0,0.00148]
[1773106311703,0.10242388,69038.0,69029.0,0.07740453]
[1773106311704,0.03,69033.0,69029.0,0.07243227]
[1773106311905,0.03,69033.0,69030.0,0.00148]
[1773106312470,0.03,69033.0,69027.0,0.07243542]
[1773106312671,0.00467979,69028.0,69021.0,0.0002]
[1773106312952,0.00467979,69028.0,69019.0,0.07271814]
[1773106312953,0.17573066,69027.0,69019.0,0.07271814]
[1773106313136,0.00467979,69024.0,69019.0,0.00148]
[1773106313307,0.03467979,69022.0,69019.0,0.00148]
[1773106313517,0.03467979,69022.0,69017.0,0.07244522]
[1773106313518,0.00467979,69021.0,69018.0,0.00148]
[1773106313730,0.00467979,69021.0,69007.0,0.0002]
[1773106313731,0.06861453,69020.0,69004.0,0.20199404]
[1773106314069,0.03,69014.0,69000.0,0.077666]
[1773106314522,0.00012792,69010.0,69001.0,0.00497226]
[1773106314851,0.00012792,69010.0,69000.0,0.07269374]
[1773106315321,0.00012792,69010.0,69001.0,0.00148]
[1773106317593,0.00012792,69010.0,69002.0,0.07246166]
[1773106317920,0.00012792,69010.0,69003.0,0.06789801]
[1773106318123,0.00480771,69010.0,69002.0,0.07246166]
[1773106318935,0.00480771,69010.0,69000.0,0.07269374]
[1773106318936,0.00467979,69008.0,69000.0,0.00148]
[1773106319099,0.00467979,69006.0,69000.0,0.00148]
[1773106319306,0.00467979,69006.0,68994.0,0.0002]
[1773106319510,0.00467979,69006.0,68995.0,0.00148]
[1773106319962,0.00467979,69006.0,68996.0,0.07246796]
[1773106320729,0.00467979,69006.0,68995.0,0.00148]
[1773106320730,0.03,69003.0,68995.0,0.00148]
[1773106321075,0.00467979,69002.0,68995.0,0.00148]
[1773106321417,0.00467979,69002.0,68993.0,0.07247032]
[1773106321655,0.00467979,69002.0,68994.0,0.00148]
[1773106321860,0.03,69002.0,68995.0,0.07246901]
[1773106322123,0.00012792,69006.0,68996.0,0.07287027]
[1773106322650,0.00467979,69013.0,68997.0,0.00497226]
[1773106322815,0.00148,69014.0,68999.0,0.00497226]
[1773106323025,0.00148,69014.0,69001.0,0.07287027]
[1773106323231,0.03,69016.0,69001.0,0.07287027]
[1773106323398,0.00148,69014.0,69001.0,0.07287027]
[1773106324607,0.03,69012.0,69002.0,0.07246166]
[1773106324816,0.03467979,69012.0,69002.0,0.07246166]
[1773106325273,0.03004979,69012.0,69000.0,0.003817]
[1773106325493,0.00467979,69011.0,69001.0,0.07246271]
[1773106325708,0.00467979,69011.0,69001.0,0.07394271]
[1773106326095,0.00467979,69011.0,69002.0,0.00148]
[1773106326727,0.1025017,69012.0,69003.0,0.07246061]
[1773106326917,0.00148,69014.0,69004.0,0.00497226]
[1773106327155,0.07392909,69014.0,69005.0,0.07879439]
[1773106327365,0.07392909,69014.0,69004.0,4.979e-05]
[1773106327860,0.00467979,69018.0,69004.0,4.979e-05]
[1773106328077,0.03,69022.0,69007.0,0.07382213]
[1773106328277,0.03,69022.0,69011.0,0.07382213]
[1773106328487,0.03,69022.0,69011.0,0.07879439]
[1773106328978,0.03,69022.0,69012.0,0.07245116]
[1773106330593,0.03,69022.0,69014.0,0.00016]
[1773106331446,0.03,69021.0,69014.0,0.00164]
[1773106331654,0.07243887,69024.0,69014.0,0.08035379]
[1773106332268,0.07243887,69024.0,69014.0,0.00164]
[1773106332500,0.03,69023.0,69014.0,0.00164]
[1773106333620,0.03,69021.0,69014.0,0.07408881]
[1773106334493,0.07068867,69022.0,69014.0,0.07408881]
[1773106335320,0.07068867,69022.0,69014.0,0.00164]
[1773106335520,0.00488841,69018.0,69004.0,0.07250891]
[1773106335758,0.00488841,69015.0,69004.0,0.07250909]
[1773106335973,0.00488841,69015.0,69004.0,4.979e-05]
[1773106336152,0.00488841,69015.0,69003.0,0.07246019]
[1773106336153,0.00488841,69010.0,69001.0,0.07288489]
[1773106336308,0.00494376,69010.0,69001.0,0.07288489]
[1773106336694,0.00494376,69010.0,69001.0,0.07436489]
[1773106337124,0.03005535,69010.0,69001.0,0.07436489]
[1773106337658,0.03005535,69010.0,69002.0,0.00148]
[1773106338244,5.535e-05,69010.0,69002.0,0.00148]
[1773106338636,0.03,69009.0,69001.0,0.07436489]
[1773106339072,0.03,69009.0,69001.0,0.07288551]
[1773106339272,0.00488841,69008.0,69001.0,0.000423]
[1773106339637,0.00488841,69008.0,68996.0,0.00148]
[1773106339638,0.00488841,69005.0,68994.0,0.0002]
[1773106339846,0.00488841,69005.0,68994.0,0.07414993]
[1773106341081,0.00488841,69005.0,69001.0,0.0002]
[1773106341613,0.03,69006.0,69001.0,0.0002]
[1773106341614,0.07245956,69004.0,69001.0,0.0002]
[1773106341816,0.03,69003.0,69001.0,0.0002]
[1773106342580,0.03488841,69003.0,69001.0,0.0002]
[1773106343884,0.03488841,69003.0,68994.0,0.07414993]
[1773106344053,0.10734909,69003.0,68994.0,0.07414993]
[1773106344290,0.10734909,69003.0,68934.0,0.53601612]
[1773106344291,0.03,69000.0,68987.0,0.0019309]
[1773106344437,0.00488841,68997.0,68987.0,0.0004509]
[1773106346073,0.03,68995.0,68987.0,0.0004509]
[1773106346249,0.03488841,68995.0,68987.0,0.0004509]
[1773106347242,0.00488841,68994.0,68987.0,1e-08]
[1773106348258,0.03488841,68992.0,68987.0,1e-08]
[1773106349183,0.03,68991.0,68987.0,1e-08]
[1773106349383,0.03,68991.0,68987.0,0.00020001]
[1773106350259,0.03,68993.0,68987.0,0.00020001]
[1773106350476,0.07246481,68999.0,68988.0,0.07382213]
[1773106350605,0.07245993,69004.0,68991.0,0.00489166]
[1773106350808,0.07245993,69004.0,68992.0,0.08019379]
[1773106351566,0.03,69003.0,68992.0,0.08019379]
[1773106352696,0.03,69001.0,68993.0,0.07247112]
[1773106354634,0.07393536,69009.0,68996.0,0.06965977]
[1773106354870,0.07250951,69010.0,68997.0,0.07246691]
[1773106354871,5.535e-05,69010.0,68997.0,0.07246691]
[1773106355042,5.535e-05,69010.0,68997.0,0.14212668]
[1773106355199,0.00153535,69010.0,68999.0,0.07455143]
[1773106355590,0.00153535,69010.0,68999.0,0.06965977]
[1773106356867,0.00022001,69008.0,68999.0,0.06965977]
[1773106357078,0.00022001,69008.0,69000.0,0.07246376]
[1773106360118,0.00022001,69008.0,69000.0,0.14212353]
[1773106361126,0.00022001,69008.0,69000.0,0.07246376]
[1773106364471,0.00484242,69007.0,68998.0,0.07394376]
[1773106364659,0.00484242,69006.0,68994.0,0.07246907]
[1773106364860,0.00484242,69006.0,68995.0,0.00148]
[1773106366878,0.00484242,69003.0,68996.0,0.07246796]
[1773106367616,0.00484242,69003.0,68992.0,0.07247177]
[1773106367617,0.00148,69003.0,68988.0,0.07247434]
[1773106367759,0.00484242,68997.0,68987.0,0.07267736]
[1773106368318,0.00494942,68995.0,68987.0,0.0002]
[1773106368479,0.00494942,68995.0,68980.0,0.07268399]
[1773106368480,0.00494942,68995.0,68981.0,0.00148]
[1773106368658,0.00494942,68992.0,68980.0,0.07268471]
[1773106369206,0.03494942,68990.0,68980.0,0.07268471]
[1773106369548,0.00494942,68989.0,68980.0,0.07268471]
[1773106370411,0.07246725,68997.0,68982.0,0.00479354]
[1773106370613,0.07246725,68997.0,68980.0,0.07268471]
[1773106370614,0.00148,68996.0,68983.0,0.0740185]
[1773106370822,0.07246725,68997.0,68985.0,0.06922496]
[1773106371030,0.00494942,69004.0,68989.0,0.06922496]
[1773106371031,0.00148,69004.0,68989.0,0.06922496]
[1773106371232,0.07245939,69005.0,68993.0,0.00479354]
[1773106371567,0.00494942,69003.0,68993.0,0.00148]
[1773106372110,0.03,69004.0,68995.0,0.00479354]
[1773106372356,0.03022001,69008.0,68998.0,0.06922496]
[1773106372570,0.10267594,69008.0,68998.0,0.0740185]
[1773106373168,0.03022001,69008.0,68999.0,0.07394481]
[1773106373368,0.03022001,69008.0,69000.0,0.06922496]
[1773106373582,0.03,69007.0,69000.0,0.06922496]
[1773106374562,0.00022001,69008.0,69000.0,0.06922496]
[1773106376916,0.00022001,69008.0,69001.0,0.07246271]
[1773106378733,0.03,69007.0,69001.0,0.07246271]
[1773106378928,0.10245692,69007.0,68999.0,0.07394476]
[1773106380599,0.03,69006.0,68999.0,0.07394476]
[1773106381549,0.03,69007.0,68999.0,0.07394476]
[1773106382128,0.07244411,69019.0,68999.0,0.07394476]
[1773106382350,0.07244491,69018.0,69003.0,0.00479354]
[1773106382553,0.07244715,69016.0,69005.0,0.0740185]
[1773106382754,0.03022001,69015.0,69007.0,0.06922496]
[1773106382928,0.07244387,69019.0,69009.0,0.06922496]
[1773106383258,0.00022001,69021.0,69012.0,0.06922496]
[1773106383470,0.0004709,69022.0,69014.0,0.07242511]
[1773106383674,0.0726587,69024.0,69014.0,0.0001146]
[1773106383675,0.00022001,69024.0,69014.0,0.0001146]
[1773106383882,0.00022001,69024.0,69017.0,0.00479354]
[1773106384051,0.00022001,69024.0,69018.0,0.06763157]
[1773106384465,0.00562,69032.0,69021.0,0.06763157]
[1773106384630,0.03,69035.0,69022.0,0.00479354]
[1773106384830,0.03,69035.0,69025.0,0.06763157]
[1773106385040,0.03,69035.0,69028.0,0.07243437]
[1773106385672,0.03022001,69038.0,69029.0,0.07242511]
[1773106385886,0.03022001,69038.0,69029.0,0.06763157]
[1773106386075,0.03022001,69038.0,69031.0,0.06763157]
[1773106386729,0.03,69037.0,69031.0,0.06763157]
[1773106386933,0.03,69037.0,69028.0,0.07243437]
[1773106387487,0.03,69037.0,69028.0,0.14006594]
[1773106387693,0.03,69036.0,69029.0,0.06763157]
[1773106388666,0.00022001,69038.0,69029.0,0.06763157]
[1773106389291,0.00022001,69038.0,69030.0,0.07243227]
[1773106389472,0.00022001,69038.0,69027.0,0.07243542]
[1773106389473,0.00022001,69036.0,69027.0,0.07243542]
[1773106390444,0.00022001,69036.0,69028.0,0.00148]
[1773106391348,0.00022001,69036.0,69029.0,0.07243332]
[1773106392029,0.00022001,69036.0,69030.0,0.00148]
[1773106392248,0.00022001,69036.0,69029.0,0.07243332]
[1773106392466,0.00022001,69036.0,69029.0,0.07391332]